fUSD/lending_fUSD_20240729
["ID","MTS","AMOUNT","RATE_DAILY","PERIOD"]
[333562028,1722246661549,-500.0,0.00010988,2]
[333562029,1722246661559,-500.0,0.00010988,2]
[333562030,1722246661572,-500.0,0.00010988,2]
[333562031,1722246661581,-500.0,0.00010988,2]
[333562032,1722246661590,-472.41828397,0.00010988,2]
[333562033,1722246661600,-4888.58,0.00010988,2]
[333562034,1722246661610,-500.0,0.00010988,2]
[333562035,1722246661620,-500.0,0.00010988,2]
[333562036,1722246661629,-500.0,0.00010988,2]
[333562037,1722246661639,-500.0,0.00010988,2]
[333562038,1722246661649,-661.63,0.00010988,2]
[333562039,1722246661660,-500.0,0.00010988,2]
[333562040,1722246661670,-150.16,0.00010988,2]
[333562041,1722246661679,-500.0,0.00010988,2]
[333562042,1722246661688,-500.0,0.00010988,2]
[333562043,1722246661697,-500.0,0.00010988,2]
[333562044,1722246661707,-500.0,0.00010988,2]
[333562045,1722246661716,-500.0,0.00010988,2]
[333562046,1722246661726,-151.0,0.00010988,2]
[333562047,1722246661735,-151.0,0.00010988,2]
[333562048,1722246661744,-151.0,0.00010988,2]
[333562049,1722246661753,-151.0,0.00010988,2]
[333562050,1722246661763,-151.0,0.00010988,2]
[333562051,1722246661772,-151.0,0.00010988,2]
[333562052,1722246661781,-151.0,0.00010988,2]
[333562053,1722246661790,-151.0,0.00010988,2]
[333562054,1722246661799,-151.0,0.00010988,2]
[333562055,1722246661808,-151.0,0.00010988,2]
[333562056,1722246661818,-770.345653,0.00010988,2]
[333562057,1722246661827,-770.345653,0.00010988,2]
[333562058,1722246661836,-983.83,0.00010989,2]
[333562059,1722246661846,-459.07,0.00010989,2]
[333562060,1722246661855,-500.0,0.00010989,2]
[333562061,1722246661865,-598.45,0.00010989,2]
[333562062,1722246661874,-598.45,0.00010989,2]
[333562063,1722246661883,-500.0,0.00010989,2]
[333562064,1722246661893,-509.53724164,0.00010989,2]
[333562065,1722246661902,-500.0,0.00010989,2]
[333562066,1722246661912,-500.0,0.00010989,2]
[333562067,1722246661921,-500.0,0.00010989,2]
[333562068,1722246661931,-500.0,0.00010989,2]
[333562069,1722246661940,-500.0,0.00010989,2]
[333562070,1722246661949,-455.13513893,0.00010989,2]
[333562071,1722246661959,-500.0,0.00010989,2]
[333562072,1722246661968,-389.68000001,0.00010989,2]
[333562073,1722246661977,-500.0,0.00010989,2]
[333562074,1722246661986,-500.0,0.00010989,2]
[333562075,1722246661995,-500.0,0.00010989,2]
[333562076,1722246662004,-367.43953081,0.00010989,2]
[333562077,1722246662013,-500.0,0.00010989,2]
[333562078,1722246662022,-500.0,0.00010989,2]
[333562079,1722246662032,-500.0,0.00010989,2]
[333562080,1722246662041,-500.0,0.00010989,2]
[333562081,1722246662050,-500.0,0.00010989,2]
[333562082,1722246662059,-500.0,0.00010989,2]
[333562083,1722246662068,-500.0,0.00010989,2]
[333562084,1722246662078,-500.0,0.00010989,2]
[333562085,1722246662088,-500.0,0.00010989,2]
[333562086,1722246662098,-500.0,0.00010989,2]
[333562087,1722246662107,-500.0,0.00010989,2]
[333562088,1722246662117,-339.77,0.00010989,2]
[333562089,1722246662126,-500.0,0.00010989,2]
[333562090,1722246662136,-500.0,0.00010989,2]
[333562091,1722246662145,-237.7,0.00010989,2]
[333562092,1722246662154,-500.0,0.00010989,2]
[333562093,1722246662164,-500.0,0.00010989,2]
[333562094,1722246662174,-500.0,0.00010989,2]
[333562095,1722246662184,-500.0,0.00010989,2]
[333562096,1722246662194,-500.0,0.00010989,2]
[333562097,1722246662203,-500.0,0.00010989,2]
[333562098,1722246662213,-500.0,0.00010989,2]
[333562099,1722246662223,-500.0,0.00010989,2]
[333562100,1722246662232,-500.0,0.00010989,2]
[333562101,1722246662242,-500.0,0.00010989,2]
[333562102,1722246662251,-500.0,0.00010989,2]
[333562103,1722246662261,-500.0,0.00010989,2]
[333562104,1722246662270,-500.0,0.00010989,2]
[333562105,1722246662280,-500.0,0.00010989,2]
[333562106,1722246662289,-500.0,0.00010989,2]
[333562107,1722246662298,-570.06,0.00010989,2]
[333562108,1722246662308,-223.96,0.00010989,2]
[333562109,1722246662318,-500.0,0.00010989,2]
[333562110,1722246662327,-500.0,0.00010989,2]
[333562111,1722246662336,-500.0,0.00010989,2]
[333562112,1722246662346,-500.0,0.00010989,2]
[333562113,1722246662355,-500.0,0.00010989,2]
[333562114,1722246662364,-500.0,0.00010989,2]
[333562115,1722246662374,-500.0,0.00010989,2]
[333562116,1722246662383,-500.0,0.00010989,2]
[333562117,1722246662392,-500.0,0.00010989,2]
[333562118,1722246662402,-318.38,0.00010989,2]
[333562119,1722246662412,-500.0,0.00010989,2]
[333562120,1722246662421,-500.0,0.00010989,2]
[333562121,1722246662431,-500.0,0.00010989,2]
[333562122,1722246662440,-500.0,0.00010989,2]
[333562123,1722246662449,-503.36,0.00010989,2]
[333562124,1722246662458,-500.0,0.00010989,2]
[333562125,1722246662468,-500.0,0.00010989,2]
[333562126,1722246662477,-500.0,0.00010989,2]
[333562127,1722246662486,-500.0,0.00010989,2]
[333562128,1722246662495,-4888.58,0.00010989,2]
[333562129,1722246662504,-500.0,0.00010989,2]
[333562130,1722246662514,-500.0,0.00010989,2]
[333562131,1722246662523,-500.0,0.00010989,2]
[333562132,1722246662532,-500.0,0.00010989,2]
[333562133,1722246662542,-500.0,0.00010989,2]
[333562134,1722246662551,-500.0,0.00010989,2]
[333562135,1722246662562,-500.0,0.00010989,2]
[333562136,1722246662574,-648.33,0.00010989,2]
[333562137,1722246662583,-648.33,0.00010989,2]
[333562138,1722246662592,-500.0,0.00010989,2]
[333562139,1722246662602,-500.0,0.00010989,2]
[333562140,1722246662672,-500.0,0.00010989,2]
[333562141,1722246662682,-444.0,0.00010989,2]
[333562142,1722246662691,-590.34,0.00010989,2]
[333562143,1722246662701,-500.0,0.00010989,2]
[333562144,1722246662710,-500.0,0.00010989,2]
[333562145,1722246662720,-731.33,0.00010989,2]
[333562146,1722246662729,-731.33,0.00010989,2]
[333562147,1722246662738,-500.0,0.00010989,2]
[333562148,1722246662747,-501.52898867,0.00010989,2]
[333562149,1722246662757,-500.0,0.00010989,2]
[333562150,1722246662767,-588.68,0.00010989,2]
[333562151,1722246662776,-500.0,0.00010989,2]
[333562152,1722246662785,-500.0,0.00010989,2]
[333562153,1722246662794,-588.68,0.00010989,2]
[333562154,1722246662803,-500.0,0.00010989,2]
[333562155,1722246662813,-500.0,0.00010989,2]
[333562156,1722246662822,-500.0,0.00010989,2]
[333562157,1722246662831,-500.0,0.00010989,2]
[333562158,1722246662841,-500.0,0.00010989,2]
[333562159,1722246662850,-500.0,0.00010989,2]
[333562160,1722246662859,-500.0,0.00010989,2]
[333562161,1722246662868,-500.0,0.00010989,2]
[333562162,1722246662877,-500.0,0.00010989,2]
[333562163,1722246662886,-500.0,0.00010989,2]
[333562164,1722246662895,-500.62856826,0.00010989,2]
[333562165,1722246662905,-583.35149921,0.00010989,2]
[333562166,1722246662914,-500.0,0.00010989,2]
[333562167,1722246662924,-500.0,0.00010989,2]
[333562168,1722246662933,-500.0,0.00010989,2]
[333562169,1722246662942,-500.0,0.00010989,2]
[333562170,1722246662951,-661.63,0.00010989,2]
[333562171,1722246662959,-535.32,0.00010989,2]
[333562172,1722246662969,-500.0,0.00010989,2]
[333562173,1722246662978,-200.70906481,0.00010989,2]
[333562174,1722246662987,-500.0,0.00010989,2]
[333562175,1722246662996,-500.0,0.00010989,2]
[333562176,1722246663005,-500.0,0.00010989,2]
[333562177,1722246663014,-500.0,0.00010989,2]
[333562178,1722246663027,-236.10078599,0.00010989,2]
[333562179,1722246663036,-500.0,0.00010989,2]
[333562180,1722246663045,-500.0,0.00010989,2]
[333562181,1722246663054,-500.0,0.00010989,2]
[333562182,1722246663063,-500.0,0.00010989,2]
[333562183,1722246663073,-547.3,0.00010989,2]
[333562184,1722246663082,-500.0,0.00010989,2]
[333562185,1722246663092,-226.68,0.00010989,2]
[333562186,1722246663101,-500.0,0.00010989,2]
[333562187,1722246663109,-571.06,0.00010989,2]
[333562188,1722246663118,-500.0,0.00010989,2]
[333562189,1722246663128,-500.0,0.00010989,2]
[333562190,1722246663137,-515.88,0.00010989,2]
[333562191,1722246663146,-500.0,0.00010989,2]
[333562192,1722246663155,-540.7,0.00010989,2]
[333562193,1722246663165,-500.0,0.00010989,2]
[333562194,1722246663174,-500.0,0.00010989,2]
[333562195,1722246663183,-500.0,0.00010989,2]
[333562196,1722246663192,-500.0,0.00010989,2]
[333562197,1722246663201,-500.0,0.00010989,2]
[333562198,1722246663210,-500.0,0.00010989,2]
[333562199,1722246663219,-500.0,0.00010989,2]
[333562200,1722246663228,-500.0,0.00010989,2]
[333562201,1722246663237,-500.0,0.00010989,2]
[333562202,1722246663246,-547.1,0.00010989,2]
[333562203,1722246663255,-500.0,0.00010989,2]
[333562204,1722246663264,-500.0,0.00010989,2]
[333562205,1722246663274,-500.0,0.00010989,2]
[333562206,1722246663283,-500.0,0.00010989,2]
[333562207,1722246663292,-501.41,0.00010989,2]
[333562208,1722246663301,-569.86,0.00010989,2]
[333562209,1722246663311,-500.0,0.00010989,2]
[333562210,1722246663320,-500.0,0.00010989,2]
[333562211,1722246663328,-500.0,0.00010989,2]
[333562212,1722246663338,-500.0,0.00010989,2]
[333562213,1722246663347,-500.0,0.00010989,2]
[333562214,1722246663356,-500.0,0.00010989,2]
[333562215,1722246663366,-500.0,0.00010989,2]
[333562216,1722246663375,-500.0,0.00010989,2]
[333562217,1722246663384,-500.0,0.00010989,2]
[333562218,1722246663393,-500.0,0.00010989,2]
[333562219,1722246663402,-500.0,0.00010989,2]
[333562220,1722246663412,-500.0,0.00010989,2]
[333562221,1722246663422,-2116.34459576,0.00010989,2]
[333562222,1722246663431,-289.196124,0.00010989,2]
[333562223,1722246663440,-151.0,0.00010989,2]
[333562224,1722246663450,-151.0,0.00010989,2]
[333562225,1722246663460,-258.946585,0.00010989,2]
[333562226,1722246663469,-151.467749,0.00010989,2]
[333562227,1722246663479,-151.0,0.00010989,2]
[333562228,1722246663489,-983.83,0.0001099,2]
[333562229,1722246663498,-500.0,0.0001099,2]
[333562230,1722246663508,-500.0,0.0001099,2]
[333562231,1722246663517,-245.27,0.0001099,2]
[333562232,1722246663527,-500.0,0.0001099,2]
[333562233,1722246663536,-500.0,0.0001099,2]
[333562234,1722246663546,-500.0,0.0001099,2]
[333562235,1722246663556,-509.98,0.0001099,2]
[333562236,1722246663569,-4888.58,0.0001099,2]
[333562237,1722246663578,-500.0,0.0001099,2]
[333562238,1722246663587,-500.0,0.0001099,2]
[333562239,1722246663596,-469.72,0.0001099,2]
[333562240,1722246663606,-500.0,0.0001099,2]
[333562241,1722246663616,-661.63,0.0001099,2]
[333562242,1722246663626,-500.0,0.0001099,2]
[333562243,1722246663635,-500.0,0.0001099,2]
[333562244,1722246663648,-500.0,0.0001099,2]
[333562245,1722246663657,-500.0,0.0001099,2]
[333562246,1722246663670,-983.83,0.00010991,2]
[333562247,1722246663683,-598.45,0.00010991,2]
[333562248,1722246663693,-500.0,0.00010991,2]
[333562249,1722246663702,-500.0,0.00010991,2]
[333562250,1722246663712,-500.0,0.00010991,2]
[333562251,1722246663721,-500.0,0.00010991,2]
[333562252,1722246663731,-500.0,0.00010991,2]
[333562253,1722246663740,-500.0,0.00010991,2]
[333562254,1722246663750,-500.0,0.00010991,2]
[333562255,1722246663759,-500.0,0.00010991,2]
[333562256,1722246663768,-500.0,0.00010991,2]
[333562257,1722246663777,-259.54347282,0.00010991,2]
[333562258,1722246663787,-238.38,0.00010991,2]
[333562259,1722246663796,-500.0,0.00010991,2]
[333562260,1722246663806,-500.0,0.00010991,2]
[333562261,1722246663815,-500.0,0.00010991,2]
[333562262,1722246663824,-500.0,0.00010991,2]
[333562263,1722246663833,-500.0,0.00010991,2]
[333562264,1722246663843,-500.0,0.00010991,2]
[333562265,1722246663853,-500.0,0.00010991,2]
[333562266,1722246663862,-500.0,0.00010991,2]
[333562267,1722246663871,-4888.58,0.00010991,2]
[333562268,1722246663881,-500.0,0.00010991,2]
[333562269,1722246663891,-500.0,0.00010991,2]
[333562270,1722246663899,-648.33,0.00010991,2]
[333562271,1722246663909,-500.0,0.00010991,2]
[333562272,1722246663919,-500.0,0.00010991,2]
[333562273,1722246663928,-731.33,0.00010991,2]
[333562274,1722246663937,-500.0,0.00010991,2]
[333562275,1722246663946,-588.68,0.00010991,2]
[333562276,1722246663956,-500.0,0.00010991,2]
[333562277,1722246663965,-661.63,0.00010991,2]
[333562278,1722246663974,-500.0,0.00010991,2]
[333562279,1722246663983,-500.0,0.00010991,2]
[333562280,1722246663992,-500.0,0.00010991,2]
[333562281,1722246664001,-500.0,0.00010991,2]
[333562282,1722246664010,-500.0,0.00010991,2]
[333562283,1722246664019,-500.0,0.00010991,2]
[333562284,1722246664028,-500.0,0.00010991,2]
[333562285,1722246664037,-500.0,0.00010991,2]
[333562286,1722246664046,-500.0,0.00010991,2]
[333562287,1722246664056,-407.64,0.00010991,2]
[333562288,1722246664065,-500.0,0.00010991,2]
[333562289,1722246664074,-336.72,0.00010991,2]
[333562290,1722246664084,-500.0,0.00010991,2]
[333562291,1722246664093,-7751.2381271,0.00010991,2]
[333562292,1722246664102,-330.6517672,0.00010991,2]
[333562293,1722246664111,-6886.8557333,0.00010991,2]
[333562294,1722246664121,-721.6959779,0.00010991,2]
[333562295,1722246664130,-17014.261946,0.00010991,2]
[333562296,1722246664139,-7767.96064495,0.00010991,2]
[333562297,1722246664532,-34305.65299458,0.00010991,2]
[333562298,1722246664544,-1923.23918246,0.00010991,2]
[333562299,1722246664556,-457.57599352,0.00010991,2]
[333562300,1722246664584,-2541.28996451,0.00010991,2]
[333562301,1722246664595,-1801.94717962,0.00010991,2]
[333562302,1722246664608,-563.91063439,0.00010991,2]
[333562368,1722247271683,321.5179159,9.5e-05,6]
[333562463,1722247823594,-1211.38907628,9.5e-05,6]
[333562486,1722247831719,-165.33,7.827e-05,2]
[333562490,1722247831729,-362.49,8.219e-05,2]
[333562492,1722247831740,-150.0,9.499e-05,2]
[333562494,1722247831750,-1531.3325666,9.5e-05,2]
[333562496,1722247831761,-4843.30926104,9.5e-05,2]
[333562498,1722247831773,-4646.09288881,9.5e-05,2]
[333562501,1722247831861,-392.9018,9.5e-05,2]
[333562502,1722247831872,-721.13724054,9.5e-05,2]
[333562503,1722247832063,-1032.53877681,9.5e-05,2]
[333562517,1722247837731,-668.5703862,9.5e-05,2]
[333562518,1722247837774,-743.22189681,9.5e-05,2]
[333562519,1722247837786,-773.0673397,9.5e-05,2]
[333562520,1722247837797,-1014.6173005,9.5e-05,2]
[333562521,1722247837826,-1067.7723143,9.5e-05,2]
[333562522,1722247837838,-561.25640432,9.5e-05,2]
[333562523,1722247837869,-1937.05580805,9.5e-05,2]
[333562524,1722247837909,-494.18305966,9.5e-05,2]
[333562525,1722247837959,-1340.69073881,9.5e-05,2]
[333562526,1722247837996,-677.79854344,9.5e-05,2]
[333562527,1722247838010,-1544.59791416,9.5e-05,2]
[333562528,1722247838022,-253.70482749,9.5e-05,2]
[333562529,1722247838039,-3125.04163485,9.5e-05,2]
[333562530,1722247838050,-680.69396276,9.5e-05,2]
[333562538,1722247839776,-6349.70000002,9.5e-05,2]
[333562540,1722247839787,-662.46784891,9.5e-05,2]
[333562543,1722247839809,-606.81535319,9.5e-05,2]
[333562544,1722247839821,-13979.55127848,9.5e-05,2]
[333562545,1722247839841,-48926.66800215,9.5e-05,2]
[333562546,1722247839853,-555.51328958,9.5e-05,2]
[333562547,1722247839864,-660.10088077,9.5e-05,2]
[333562548,1722247839875,-302.0,9.5e-05,2]
[333562549,1722247843013,-1685.29155017,9.5e-05,2]
[333562552,1722247843025,-1765.19999999,9.5e-05,2]
[333562553,1722247843036,-701.66503495,9.5e-05,2]
[333562554,1722247843047,-1209.49724686,9.5e-05,2]
[333562555,1722247843158,-660.09162531,9.5e-05,2]
[333562558,1722247843191,-2015.94855758,9.5e-05,2]
[333562560,1722247843202,-1164.9372878,9.5e-05,2]
[333562561,1722247843224,-800.98361673,9.5e-05,2]
[333562562,1722247843235,-697.01342854,9.5e-05,2]
[333562563,1722247843246,-823.52658831,9.5e-05,2]
[333562564,1722247843265,-676.29982623,9.5e-05,2]
[333562565,1722247843277,-300.0,9.5e-05,2]
[333562566,1722247843295,-895.88804481,9.5e-05,2]
[333562577,1722247843578,-122385.73994086,9.5e-05,2]
[333562579,1722247843589,-150.0,9.888e-05,2]
[333562581,1722247843598,-400.0,9.9e-05,3]
[333562583,1722247843608,-500.0,9.998e-05,2]
[333562585,1722247843618,-500.0,9.998e-05,2]
[333562587,1722247843627,-500.0,9.998e-05,2]
[333562588,1722247843637,-500.0,9.998e-05,2]
[333562590,1722247843647,-500.0,9.998e-05,2]
[333562592,1722247843656,-500.0,9.998e-05,2]
[333562594,1722247843666,-500.0,9.998e-05,2]
[333562596,1722247843675,-500.0,9.998e-05,2]
[333562598,1722247843685,-500.0,9.998e-05,2]
[333562600,1722247843695,-456.3,9.998e-05,2]
[333562602,1722247843704,-500.0,9.998e-05,2]
[333562604,1722247843714,-500.0,9.998e-05,2]
[333562606,1722247843723,-353.64,9.998e-05,2]
[333562608,1722247843733,-1000.0,9.999e-05,2]
[333562610,1722247843742,-1250.0,0.0001,2]
[333562612,1722247843752,-900.0,0.0001,3]
[333562614,1722247843761,-1300.0,0.000101,3]
[333562616,1722247843770,-1800.0,0.000102,3]
[333562618,1722247843780,-2300.0,0.000103,3]
[333562620,1722247843790,-400.0,0.000104,3]
[333562622,1722247843800,-150.0,0.00010449,2]
[333562624,1722247843809,-362.49,0.00010468,2]
[333562626,1722247843819,-400.0,0.000105,3]
[333562628,1722247843828,-12804.49110925,0.000105,2]
[333562630,1722247843837,-400.0,0.000106,3]
[333562632,1722247843847,-400.0,0.000107,3]
[333562633,1722247843856,-150.0,0.00010713,2]
[333562635,1722247843865,-150.0,0.00010715,2]
[333562637,1722247843874,-150.0,0.00010716,2]
[333562639,1722247843884,-150.0,0.00010717,2]
[333562641,1722247843893,-150.0,0.00010726,2]
[333562643,1722247843904,-150.0,0.00010727,2]
[333562645,1722247843914,-150.0,0.00010729,2]
[333562646,1722247843923,-150.0,0.00010734,2]
[333562647,1722247843938,-150.0,0.00010735,2]
[333562648,1722247843948,-150.0,0.00010736,2]
[333562649,1722247843957,-150.0,0.00010736,2]
[333562650,1722247843967,-150.0,0.00010737,2]
[333562651,1722247843978,-150.0,0.00010738,2]
[333562652,1722247843987,-150.0,0.0001074,2]
[333562653,1722247843996,-150.0,0.00010743,2]
[333562655,1722247844005,-150.0,0.00010748,2]
[333562656,1722247844018,-150.0,0.00010754,2]
[333562658,1722247844028,-150.0,0.00010758,2]
[333562660,1722247844037,-150.0,0.00010761,2]
[333562662,1722247844047,-150.0,0.00010762,2]
[333562664,1722247844056,-150.0,0.00010764,2]
[333562666,1722247844065,-150.0,0.00010767,2]
[333562668,1722247844074,-150.0,0.00010767,2]
[333562670,1722247844084,-150.0,0.00010769,2]
[333562672,1722247844093,-255.20930379,0.00010784,2]
[333562674,1722247844102,-150.0,0.00010786,2]
[333562676,1722247844111,-150.0,0.00010791,2]
[333562677,1722247844120,-150.0,0.00010792,2]
[333562679,1722247844130,-150.0,0.00010792,2]
[333562681,1722247844139,-150.0,0.00010794,2]
[333562683,1722247844149,-150.0,0.00010797,2]
[333562685,1722247844159,-150.0,0.00010799,2]
[333562687,1722247844169,-150.0,0.000108,2]
[333562689,1722247844178,-900.0,0.000108,3]
[333562691,1722247844187,-150.0,0.00010807,2]
[333562693,1722247844197,-150.0,0.00010813,2]
[333562695,1722247844206,-150.0,0.00010818,2]
[333562697,1722247844216,-150.0,0.00010818,2]
[333562699,1722247844225,-150.0,0.00010818,2]
[333562701,1722247844234,-150.0,0.00010818,2]
[333562703,1722247844244,-150.0,0.00010819,2]
[333562705,1722247844254,-150.0,0.00010822,2]
[333562707,1722247844263,-150.0,0.00010827,2]
[333562709,1722247844272,-150.0,0.0001083,2]
[333562711,1722247844282,-150.0,0.00010831,2]
[333562713,1722247844292,-150.0,0.00010834,2]
[333562715,1722247844301,-150.0,0.00010837,2]
[333562717,1722247844310,-150.0,0.0001084,2]
[333562719,1722247844320,-150.0,0.00010842,2]
[333562721,1722247844329,-150.0,0.00010846,2]
[333562723,1722247844338,-150.0,0.00010853,2]
[333562725,1722247844347,-150.0,0.00010864,2]
[333562726,1722247844356,-150.0,0.00010866,2]
[333562728,1722247844366,-150.0,0.00010869,2]
[333562730,1722247844375,-150.0,0.0001087,2]
[333562732,1722247844385,-150.0,0.00010873,2]
[333562734,1722247844395,-150.0,0.00010878,2]
[333562737,1722247844409,-150.0,0.00010878,2]
[333562739,1722247844422,-150.0,0.00010888,2]
[333562741,1722247844437,-150.0,0.0001089,2]
[333562743,1722247844450,-2429.9035,0.00010891,2]
[333562746,1722247844462,-2647.4202,0.00010891,2]
[333562748,1722247844474,-26556.4543,0.00010891,2]
[333562749,1722247844484,-8190.2991,0.00010891,2]
[333562751,1722247844495,-7500.0,0.00010891,2]
[333562754,1722247844507,-150.0,0.00010891,2]
[333562756,1722247844518,-167.77557861,0.00010891,2]
[333562758,1722247844530,-1000.6278,0.00010892,2]
[333562760,1722247844541,-22499.2934,0.00010892,2]
[333562762,1722247844553,-1217.4363,0.00010892,2]
[333562764,1722247844564,-150.0,0.00010897,2]
[333562767,1722247844576,-150.0,0.00010904,2]
[333562769,1722247844587,-150.0,0.00010907,2]
[333562771,1722247844599,-150.0,0.00010912,2]
[333562773,1722247844610,-150.0,0.00010913,2]
[333562775,1722247844622,-150.0,0.00010917,2]
[333562777,1722247844635,-150.0,0.00010932,2]
[333562779,1722247844646,-150.0,0.00010944,2]
[333562782,1722247844657,-150.0,0.00010947,2]
[333562784,1722247844668,-150.395,0.00010957,2]
[333562786,1722247844679,-162.659,0.00010957,2]
[333562788,1722247844690,-1575.612,0.00010958,2]
[333562790,1722247844701,-1925.0,0.00010958,2]
[333562793,1722247844713,-450.0,0.00010958,2]
[333562795,1722247844725,-621.0,0.00010958,2]
[333562797,1722247844736,-426.297,0.00010958,2]
[333562799,1722247844747,-1370.0,0.00010958,2]
[333562801,1722247844759,-500.0,0.00010958,2]
[333562803,1722247844769,-500.0,0.00010958,2]
[333562805,1722247844779,-500.0,0.00010958,2]
[333562807,1722247844788,-500.0,0.00010958,2]
[333562810,1722247844801,-500.0,0.00010958,2]
[333562812,1722247844811,-500.0,0.00010958,2]
[333562814,1722247844822,-500.0,0.00010958,2]
[333562816,1722247844834,-178.46047162,0.00010958,2]
[333562818,1722247844845,-500.0,0.00010958,2]
[333562820,1722247844857,-500.0,0.00010958,2]
[333562822,1722247844869,-500.0,0.00010958,2]
[333562825,1722247844881,-500.0,0.00010958,2]
[333562827,1722247844894,-500.0,0.00010958,2]
[333562829,1722247844906,-500.0,0.00010958,2]
[333562831,1722247844917,-500.0,0.00010958,2]
[333562833,1722247844930,-345.17,0.00010958,2]
[333562835,1722247844942,-250.0,0.00010959,2]
[333562837,1722247844953,-150.0,0.00010959,2]
[333562839,1722247844963,-150.0,0.0001096,2]
[333562842,1722247844975,-150.0,0.00010962,2]
[333562844,1722247844985,-150.0,0.00010966,2]
[333562846,1722247844996,-150.0,0.00010977,2]
[333562848,1722247845009,-150.0,0.0001098,2]
[333562850,1722247845021,-150.0,0.0001098,2]
[333562852,1722247845032,-153.65,0.00010981,2]
[333562855,1722247845044,-24327.74658209,0.0001099,2]
[333562857,1722247845056,-200.0,0.00010991,2]
[333562859,1722247845067,-2000.0,0.00010991,2]
[333562861,1722247845077,-200.0,0.00010991,2]
[333562863,1722247845090,-2000.0,0.00010991,2]
[333562865,1722247845101,-200.0,0.00010991,2]
[333562868,1722247845111,-3000.0,0.00010991,2]
[333562870,1722247845124,-6174.9159207,0.00010991,2]
[333562872,1722247845135,-12568.0638594,0.00010991,2]
[333562873,1722247845146,-2000.0,0.00010991,2]
[333562875,1722247845157,-200.0,0.00010991,2]
[333562877,1722247845167,-44645.9771248,0.00010991,2]
[333562889,1722247845600,-696.19505173,0.00010991,2]
[333562890,1722247845613,-684.04047738,0.00010991,2]
[333562892,1722247845760,-747.31654016,0.00010991,2]
[333562893,1722247845773,-1216.07779227,0.00010991,2]
[333562894,1722247845799,-3870.0,0.00010991,2]
[333562895,1722247845840,-497.75,0.00010991,2]
[333562896,1722247845881,-684.41235404,0.00010991,2]
[333562897,1722247845894,-6751.79144901,0.00010991,2]
[333562898,1722247845907,-50898.02176511,0.00010991,2]
[333562899,1722247845919,-5219.8945771,0.00010992,2]
[333562900,1722247845931,-4264.8732335,0.00010992,2]
[333562901,1722247845944,-3309.85189,0.00010992,2]
[333562902,1722247845955,-2354.8305464,0.00010992,2]
[333562903,1722247845968,-10624.2690957,0.00010992,2]
[333562904,1722247845979,-8680.474332,0.00010992,2]
[333562905,1722247845990,-6736.6795682,0.00010992,2]
[333562906,1722247846001,-4792.8848045,0.00010992,2]
[333562907,1722247846014,-93571.8638002,0.00010992,2]
[333562908,1722247846026,-76452.1450459,0.00010992,2]
[333562909,1722247846036,-59332.4262917,0.00010992,2]
[333562910,1722247846047,-42212.7075374,0.00010992,2]
[333562911,1722247846057,-500.0,0.00010995,2]
[333562912,1722247846068,-500.0,0.00010995,2]
[333562913,1722247846079,-983.83,0.00010996,2]
[333562914,1722247846090,-983.83,0.00010996,2]
[333562915,1722247846101,-598.45,0.00010996,2]